bitfinex/quotes_BTCUSD_20260310
["timestamp","ask_amount","ask_price","bid_price","bid_amount"]
[1773155642336,0.03,71223.0,71217.0,0.00144]
[1773155642562,0.03,71222.0,71218.0,0.00144]
[1773155642754,0.03,71222.0,71219.0,0.00144]
[1773155642960,0.03,71222.0,71220.0,0.00144]
[1773155643158,0.07019357,71232.0,71212.0,0.001]
[1773155643160,0.07018233,71243.0,71222.0,0.0612358]
[1773155643370,0.07018233,71243.0,71223.0,0.07020179]
[1773155643371,0.07018345,71242.0,71223.0,0.07020179]
[1773155643565,0.03,71241.0,71224.0,0.00144]
[1773155643782,0.03,71241.0,71225.0,0.00144]
[1773155643989,0.03,71241.0,71226.0,0.00144]
[1773155644242,0.03,71241.0,71227.0,0.00144]
[1773155644447,0.03011287,71241.0,71228.0,0.00144]
[1773155644646,0.03011287,71241.0,71216.0,0.07020894]
[1773155644647,0.03011287,71241.0,71229.0,0.00144]
[1773155645302,0.03011287,71241.0,71229.0,0.00129365]
[1773155645510,0.03,71239.0,71229.0,0.00129365]
[1773155646208,0.03,71239.0,71229.0,0.07148958]
[1773155646612,0.03,71239.0,71229.0,0.00129365]
[1773155647012,0.03,71239.0,71230.0,0.00144]
[1773155647212,0.03,71239.0,71222.0,0.0702027]
[1773155647213,0.03,71239.0,71231.0,0.00144]
[1773155647444,0.03,71239.0,71222.0,0.0702027]
[1773155647445,0.03,71237.0,71200.0,0.07045373]
[1773155647616,0.07018725,71238.0,71201.0,0.07166373]
[1773155647617,0.08966391,71233.0,71201.0,0.07166373]
[1773155647813,0.00144,71232.0,71201.0,0.07166373]
[1773155648019,0.03,71230.0,71201.0,0.07022373]
[1773155648178,0.03,71226.0,71201.0,0.07022373]
[1773155648543,0.00144,71225.0,71201.0,0.07022373]
[1773155648722,0.00144,71225.0,71202.0,0.00144]
[1773155649532,0.06020105,71224.0,71203.0,0.07022176]
[1773155650455,0.06020105,71224.0,71204.0,0.00611022]
[1773155650618,0.06020105,71224.0,71203.0,0.07022176]
[1773155651023,0.06020105,71224.0,71205.0,0.0612358]
[1773155651215,0.06020105,71224.0,71207.0,0.0612358]
[1773155651474,0.06020105,71224.0,71209.0,0.0612358]
[1773155651602,0.03,71230.0,71210.0,0.07165485]
[1773155652444,0.03,71230.0,71211.0,0.06594089]
[1773155652673,0.03,71233.0,71211.0,0.06594089]
[1773155653582,0.10019258,71233.0,71212.0,0.07021288]
[1773155653782,0.03,71232.0,71213.0,0.06606057]
[1773155654790,0.03,71231.0,71213.0,0.06606057]
[1773155655917,0.07019081,71235.0,71213.0,0.06606057]
[1773155655918,0.03,71230.0,71215.0,0.0612358]
[1773155656394,0.0701921,71234.0,71215.0,0.0612358]
[1773155657034,0.03,71233.0,71216.0,0.00144]
[1773155657627,0.04038291,71235.0,71216.0,0.00144]
[1773155657628,0.0701912,71236.0,71216.0,0.00743864]
[1773155657846,0.07017937,71247.0,71223.0,0.0612358]
[1773155658000,0.03,71239.0,71231.0,0.0612358]
[1773155658205,0.07040637,71250.0,71232.0,0.0626758]
[1773155658206,0.117726,71244.0,71232.0,0.0626758]
[1773155658409,0.18790821,71244.0,71233.0,0.00144]
[1773155658638,0.07580221,71244.0,71233.0,0.00144]
[1773155658841,0.112106,71242.0,71233.0,0.00144]
[1773155659090,0.03,71242.0,71233.0,0.00144]
[1773155659225,0.03,71241.0,71233.0,0.00144]
[1773155659633,0.07580142,71244.0,71233.0,0.00144]
[1773155659634,0.00562,71244.0,71233.0,0.00144]
[1773155659835,0.00562,71244.0,71234.0,0.00144]
[1773155660038,0.00562,71244.0,71235.0,0.00144]
[1773155660265,0.07017655,71249.0,71230.0,0.06278682]
[1773155660266,0.03,71248.0,71236.0,0.00144]
[1773155660471,0.07089079,71259.0,71239.0,0.06278682]
[1773155660984,0.07089079,71259.0,71241.0,0.06278682]
[1773155660985,0.0007242,71259.0,71241.0,0.06278682]
[1773155661727,0.23676072,71270.0,71240.0,0.15784682]
[1773155661728,0.00562,71272.0,71250.0,0.06278682]
[1773155661868,0.00562,71272.0,71253.0,0.06278682]
[1773155662071,0.16680416,71287.0,71261.0,0.06278682]
[1773155662281,0.03,71286.0,71263.0,0.06278682]
[1773155662785,0.03,71286.0,71264.0,0.00144]
[1773155663204,0.03037654,71286.0,71264.0,0.00144]
[1773155663870,0.03,71284.0,71265.0,0.07016066]
[1773155664069,0.03,71284.0,71266.0,0.06278682]
[1773155664233,0.03,71284.0,71267.0,0.00144]
[1773155664635,0.03,71284.0,71266.0,0.06278682]
[1773155664859,0.03,71284.0,71268.0,0.00144]
[1773155665887,0.03,71280.0,71251.0,0.07017445]
[1773155666105,0.03,71278.0,71252.0,0.00144]
[1773155666310,0.03,71278.0,71252.0,0.06278682]
[1773155666511,0.03,71278.0,71253.0,0.00144]
[1773155666752,0.03,71278.0,71253.0,0.06422682]
[1773155666929,0.03,71278.0,71254.0,0.00144]
[1773155667128,0.03,71278.0,71254.0,0.06422682]
[1773155668144,0.03,71276.0,71256.0,0.06278682]
[1773155668613,0.06264123,71275.0,71250.0,0.00023]
[1773155668808,0.03,71272.0,71250.0,0.00023]
[1773155669012,0.00144,71275.0,71251.0,0.00144]
[1773155669013,0.03,71270.0,71251.0,0.00144]
[1773155669196,0.03,71268.0,71245.0,0.07017981]
[1773155669364,0.03,71268.0,71252.0,1e-08]
[1773155669567,0.03,71268.0,71253.0,1e-08]
[1773155669761,0.03,71268.0,71254.0,0.00144]
[1773155670140,0.03,71268.0,71237.0,0.07018775]
[1773155670141,0.03,71264.0,71232.0,0.07019317]
[1773155670358,0.09120123,71262.0,71233.0,0.0087882]
[1773155670557,0.03,71260.0,71234.0,0.06278682]
[1773155671010,0.03,71260.0,71236.0,0.06278682]
[1773155671260,0.03,71260.0,71232.0,0.07019317]
[1773155671466,0.1697589,71260.0,71236.0,0.00011285]
[1773155671672,0.00023,71275.0,71241.0,0.06278682]
[1773155671673,0.03,71259.0,71241.0,0.06278682]
[1773155671839,0.03,71259.0,71243.0,0.06278682]
[1773155672041,0.20991759,71267.0,71245.0,0.06278682]
[1773155672237,0.20991759,71267.0,71247.0,0.06278682]
[1773155672683,0.03,71266.0,71247.0,0.06278682]
[1773155673478,0.03,71266.0,71249.0,0.06278682]
[1773155673646,0.03,71266.0,71250.0,0.00144]
[1773155673852,0.16683416,71275.0,71251.0,0.06278682]
[1773155674153,0.07015373,71273.0,71254.0,0.07017149]
[1773155674369,0.07015373,71273.0,71255.0,0.06278682]
[1773155674370,0.07577457,71272.0,71255.0,0.06278682]
[1773155674579,0.07577395,71272.0,71256.0,0.00723005]
[1773155674776,0.07577417,71272.0,71257.0,0.06278682]
[1773155674973,0.0002,71278.0,71257.0,0.06278682]
[1773155674974,0.0002,71278.0,71261.0,0.06278682]
[1773155676161,0.00031292,71278.0,71261.0,0.06278682]
[1773155676359,0.03031292,71278.0,71263.0,0.06278682]
[1773155676565,0.03031292,71278.0,71269.0,0.06278682]
[1773155676817,0.07014243,71284.0,71269.0,0.06278682]
[1773155677016,0.07111047,71284.0,71269.0,0.06278682]
[1773155677216,0.07111047,71284.0,71269.0,0.06264047]
[1773155677426,0.07111047,71284.0,71264.0,0.06422682]
[1773155677708,0.03,71283.0,71264.0,0.06422682]
[1773155678211,0.0305918,71283.0,71264.0,0.06422682]
[1773155678579,0.03,71281.0,71270.0,0.07015574]
[1773155678828,0.03,71281.0,71271.0,0.00144]
[1773155679075,0.0305918,71281.0,71272.0,0.00144]
[1773155679280,0.0002,71278.0,71273.0,0.00144]
[1773155680033,0.03,71276.0,71262.0,0.00144]
[1773155680250,0.03,71276.0,71263.0,0.00144]
[1773155680893,0.03,71274.0,71264.0,0.00144]
[1773155681300,0.03,71274.0,71250.0,0.00705545]
[1773155681529,0.03,71272.0,71251.0,0.00144]
[1773155681680,0.03,71270.0,71251.0,0.00144]
[1773155682062,0.0007,71269.0,71253.0,0.06278682]
[1773155682266,0.07014885,71277.0,71259.0,0.15784682]
[1773155682490,0.07084374,71278.0,71261.0,0.06278682]
[1773155682662,0.03,71277.0,71261.0,0.06278682]
[1773155683075,0.001,71270.0,71263.0,0.06278682]
[1773155683275,0.03,71275.0,71263.0,0.06278682]
[1773155683725,0.07084374,71278.0,71263.0,0.06278682]
[1773155683726,0.0006952,71278.0,71263.0,0.06278682]
[1773155684068,0.03,71277.0,71263.0,0.06278682]
[1773155685020,0.0006952,71278.0,71264.0,0.07016165]
[1773155685194,0.0006952,71278.0,71265.0,0.06278682]
[1773155685699,0.0006952,71278.0,71265.0,0.06966751]
[1773155687110,0.0006952,71278.0,71266.0,0.1413449]
[1773155687312,0.0006952,71278.0,71267.0,0.00144]
[1773155687516,0.0006952,71278.0,71267.0,0.07262522]
[1773155688250,0.03,71277.0,71266.0,0.07015968]
[1773155688464,0.03,71277.0,71267.0,0.00144]
[1773155688665,0.03,71277.0,71260.0,0.07016559]
[1773155688866,0.03,71277.0,71261.0,0.00166]
[1773155689056,0.03,71277.0,71266.0,0.001]
[1773155689256,0.03,71275.0,71267.0,0.00144]
[1773155690655,0.03,71275.0,71263.0,0.07016189]
[1773155690863,0.03,71275.0,71264.0,0.00144]
[1773155691043,0.03,71273.0,71265.0,0.07016066]
[1773155691239,0.03,71273.0,71257.0,0.00710658]
[1773155691240,0.0701518,71274.0,71250.0,0.00023]
[1773155691241,0.03,71271.0,71250.0,0.00023]
[1773155691450,0.03710669,71271.0,71254.0,0.00144]
[1773155691652,0.03854669,71271.0,71254.0,0.00144]
[1773155692179,0.03710669,71271.0,71254.0,0.00144]
[1773155692370,0.00144,71270.0,71254.0,0.00144]
[1773155692559,0.00854669,71269.0,71254.0,0.00144]
[1773155693216,0.03,71267.0,71254.0,0.00144]
[1773155693558,0.03710669,71267.0,71254.0,0.00144]
[1773155694474,0.03710669,71267.0,71254.0,0.01144]
[1773155695301,0.03,71265.0,71254.0,0.01144]
[1773155695504,0.03710669,71265.0,71254.0,0.01144]
[1773155696119,0.03,71263.0,71244.0,0.00562]
[1773155696339,0.07015968,71266.0,71226.0,0.07019898]
[1773155696340,0.03,71257.0,71227.0,0.00144]
[1773155696494,0.07015968,71266.0,71226.0,0.07019849]
[1773155696495,0.03,71255.0,71228.0,0.00144]
[1773155696691,0.00144,71254.0,71228.0,0.00144]
[1773155696891,0.03,71255.0,71229.0,0.07015111]
[1773155697318,0.03,71255.0,71230.0,0.07019514]
[1773155697319,0.03,71253.0,71230.0,0.07019514]
[1773155697502,0.12534281,71254.0,71230.0,0.00011292]
[1773155697503,0.03,71251.0,71230.0,0.00011292]
[1773155697721,0.03,71251.0,71231.0,0.00144]
[1773155697923,0.03,71251.0,71230.0,0.00011292]
[1773155698124,0.03144,71251.0,71231.0,0.00144]
[1773155698491,0.00144,71251.0,71231.0,0.00144]
[1773155698712,0.03,71249.0,71232.0,0.00144]
[1773155699113,0.03,71249.0,71230.0,0.00011292]
[1773155699310,0.03,71247.0,71232.0,0.07019317]
[1773155699908,0.03,71247.0,71233.0,0.00144]
[1773155700107,0.03,71247.0,71234.0,0.00144]
[1773155700311,0.0701774,71248.0,71215.0,0.07042917]
[1773155700312,0.03,71243.0,71215.0,0.07042917]
[1773155700520,0.03,71237.0,71217.0,0.00144]
[1773155700715,0.03,71235.0,71218.0,0.00144]
[1773155701049,0.0701774,71248.0,71222.0,0.15448546]
[1773155701245,0.0701774,71248.0,71224.0,0.07020105]
[1773155701508,0.06697756,71247.0,71225.0,0.00144]
[1773155701650,0.06697756,71245.0,71225.0,0.00144]
[1773155701984,0.0701774,71248.0,71225.0,0.00144]
[1773155701985,0.03,71244.0,71226.0,0.07015111]
[1773155702188,0.03,71244.0,71225.0,0.00349644]
[1773155702494,0.03,71244.0,71204.0,0.13588]
[1773155702495,0.03,71238.0,71216.0,1e-08]
[1773155702690,0.15762607,71240.0,71200.0,0.00045]
[1773155702691,0.03,71232.0,71215.0,0.00144]
[1773155703051,0.15762607,71240.0,71193.0,0.00022]
[1773155703053,0.03,71224.0,71193.0,0.00022]
[1773155703254,0.03,71224.0,71171.0,0.16896]
[1773155703255,0.539135,71225.0,71176.0,0.07024762]
[1773155703256,0.351245,71218.0,71176.0,0.07024762]
[1773155703470,0.03,71205.0,71182.0,1e-08]
[1773155703683,0.03,71199.0,71181.0,0.06724326]
[1773155703905,0.03,71199.0,71180.0,0.00144]
[1773155703906,0.09697756,71197.0,71180.0,0.00144]
[1773155704113,0.09697756,71197.0,71181.0,0.00437446]
[1773155704114,0.03,71197.0,71181.0,0.00437446]
[1773155704313,0.03,71197.0,71181.0,0.00144]
[1773155704832,0.06697756,71212.0,71182.0,0.07015111]
[1773155704833,0.001,71199.0,71182.0,0.07015111]
[1773155705260,0.00144,71210.0,71184.0,0.07015111]
[1773155705481,0.03144,71209.0,71185.0,0.07161739]
[1773155705694,0.001,71199.0,71185.0,0.07161739]
[1773155705909,0.03144,71209.0,71185.0,0.07161739]
[1773155705910,0.03,71209.0,71189.0,0.15762607]
[1773155706130,0.03,71209.0,71189.0,0.07015111]
[1773155706350,0.07021406,71211.0,71185.0,0.07161739]
[1773155706351,0.03,71210.0,71185.0,0.07161739]
[1773155706568,0.03,71210.0,71180.0,0.07015111]
[1773155706569,0.03,71204.0,71176.0,0.07024839]
[1773155706773,0.09841756,71204.0,71177.0,0.00144]
[1773155706987,0.09697756,71204.0,71177.0,0.00144]
[1773155707421,0.03,71202.0,71180.0,0.15762607]
[1773155707634,0.03,71202.0,71190.0,0.15762607]
[1773155707877,0.07582916,71216.0,71193.0,0.07015111]
[1773155708059,0.07582916,71216.0,71192.0,0.14618236]
[1773155708060,0.00562,71216.0,71194.0,0.07113734]
[1773155708201,0.07582921,71216.0,71194.0,0.07113734]
[1773155708402,0.03,71215.0,71194.0,0.07113734]
[1773155709531,0.03,71215.0,71195.0,0.07022965]
[1773155709532,0.03,71213.0,71195.0,0.07022965]
[1773155709740,0.03,71213.0,71197.0,0.07015111]
[1773155709939,0.03,71213.0,71196.0,0.00144]
[1773155710533,0.03,71212.0,71196.0,0.07159111]
[1773155711352,0.00562,71216.0,71201.0,0.07015111]
[1773155711567,0.03037591,71218.0,71201.0,0.000986]
[1773155711776,0.03037591,71218.0,71192.0,0.14618236]
[1773155711777,0.03,71214.0,71200.0,0.07022463]
[1773155712010,0.03,71214.0,71196.0,0.001]
[1773155712011,0.03,71212.0,71196.0,0.07122805]
[1773155712206,0.03,71210.0,71170.0,0.29306607]
[1773155712400,0.03,71210.0,71189.0,0.07167557]
[1773155712616,0.09697756,71210.0,71189.0,0.07167557]
[1773155712815,0.09697756,71210.0,71189.0,0.07023557]
[1773155713016,0.03,71210.0,71190.0,0.00144]
[1773155713225,0.03,71210.0,71188.0,0.07585557]
[1773155713226,0.06697756,71205.0,71191.0,0.00144]
[1773155713436,0.07058354,71218.0,71191.0,0.00144]
[1773155713637,0.07020894,71216.0,71192.0,0.07023261]
[1773155714004,0.00988967,71215.0,71194.0,0.07015111]
[1773155714197,0.00988967,71215.0,71185.0,0.07015111]
[1773155714343,0.03,71211.0,71188.0,0.07585578]
[1773155714538,0.03,71209.0,71189.0,0.00144]
[1773155714779,0.07020894,71216.0,71189.0,0.00144]
[1773155714780,0.03,71207.0,71193.0,0.07015111]
[1773155715218,0.03,71207.0,71194.0,0.00144]
[1773155715437,0.03,71207.0,71193.0,0.07015111]
[1773155715638,0.03,71207.0,71196.0,0.07022866]
[1773155715791,0.10021829,71207.0,71196.0,0.07022866]
[1773155715965,0.10021829,71207.0,71192.0,0.17332338]
[1773155715966,0.10021829,71207.0,71189.0,0.07023557]
[1773155715967,0.03,71205.0,71189.0,0.07023557]
[1773155716163,0.07021273,71213.0,71190.0,0.22777718]
[1773155716413,0.07020795,71217.0,71191.0,0.07956509]
[1773155716603,0.07020795,71217.0,71191.0,0.1026644]
[1773155716772,0.07020795,71217.0,71192.0,0.00144]
[1773155716972,0.00144,71216.0,71193.0,0.00244]
[1773155717171,0.00144,71216.0,71193.0,0.001]
[1773155717172,0.03,71214.0,71193.0,0.001]
[1773155717376,0.00144,71216.0,71188.0,0.00562]
[1773155717377,0.03,71210.0,71188.0,0.00562]
[1773155717615,0.03,71204.0,71188.0,0.00562]
[1773155717828,0.03,71202.0,71189.0,0.00144]
[1773155717977,0.03,71202.0,71190.0,0.00144]
[1773155718176,0.03,71202.0,71179.0,0.05818491]
[1773155718177,0.09697756,71202.0,71179.0,0.05818491]
[1773155718381,0.03,71200.0,71180.0,0.00144]
[1773155718579,0.03,71200.0,71175.0,0.00023]
[1773155718580,0.06697756,71199.0,71161.0,0.07015111]
[1773155718785,0.03,71194.0,71172.0,0.00144]
[1773155719025,0.03,71194.0,71162.0,0.00745779]
[1773155719026,0.03,71190.0,71162.0,0.00745779]
[1773155719228,0.03,71190.0,71160.0,0.00584]
[1773155719229,0.10494919,71186.0,71167.0,0.00144]
[1773155719433,0.10638919,71186.0,71168.0,0.00144]
[1773155719616,0.03,71184.0,71168.0,0.00144]
[1773155720016,0.03,71184.0,71168.0,0.07036889]
[1773155720183,0.03,71184.0,71169.0,0.00144]
[1773155720498,0.03,71184.0,71168.0,0.07036919]
[1773155720710,0.1466287,71186.0,71170.0,0.00144]
[1773155720711,0.03,71183.0,71170.0,0.00144]
[1773155721076,0.07022985,71195.0,71170.0,0.00144]
[1773155721077,0.00144,71196.0,71171.0,0.07530728]
[1773155721210,0.00681447,71196.0,71172.0,0.00140504]
[1773155721435,0.00681447,71196.0,71172.0,0.00140503]
[1773155721645,0.03,71194.0,71173.0,0.07025135]
[1773155721845,0.03,71194.0,71174.0,0.00140499]
[1773155722195,0.03,71194.0,71175.0,0.00144]
[1773155723096,0.03681447,71194.0,71173.0,0.07025135]
[1773155723267,0.03681447,71194.0,71169.0,0.07047521]
[1773155723486,0.03,71190.0,71170.0,0.00144]
[1773155723679,0.03,71186.0,71166.0,0.00022]
[1773155723854,0.10494919,71184.0,71166.0,0.00022]
[1773155724081,0.10494919,71184.0,71167.0,0.00144]
[1773155724534,0.00011271,71186.0,71154.0,0.07098436]
[1773155724535,0.03,71180.0,71159.0,0.00144]
[1773155724680,0.10494919,71176.0,71159.0,0.00144]
[1773155724870,0.03,71174.0,71154.0,0.0007152]
[1773155725077,0.07494919,71175.0,71132.0,0.00562]
[1773155725078,0.07494919,71175.0,71149.0,0.00144]
[1773155725079,0.03,71170.0,71149.0,0.00144]
[1773155725314,0.03,71164.0,71141.0,0.07028233]
[1773155725517,0.03,71161.0,71137.0,0.00012]
[1773155725718,0.03,71158.0,71137.0,0.00012]
[1773155725970,0.03,71158.0,71137.0,0.00148067]
[1773155726110,0.03,71158.0,71137.0,0.00012]
[1773155726314,0.03,71156.0,71138.0,0.00144]
[1773155726517,0.03,71156.0,71138.0,0.00011265]
[1773155726770,0.03,71156.0,71139.0,0.00144]
[1773155727073,0.22803002,71159.0,71125.0,0.0730287]
[1773155727074,0.03,71149.0,71125.0,0.0730287]
[1773155727199,0.00011263,71149.0,71128.0,0.00144]
[1773155727398,0.00011263,71149.0,71125.0,0.0730287]
[1773155727399,0.03,71145.0,71125.0,0.00273]
[1773155727621,0.03,71143.0,71126.0,0.00144]
[1773155727867,0.03,71143.0,71125.0,0.07302805]
[1773155727868,0.07010633,71142.0,71127.0,0.00144]
[1773155728069,0.07010633,71142.0,71125.0,0.00273]
[1773155728328,0.07010633,71142.0,71128.0,0.00144]
[1773155728644,0.07010633,71142.0,71129.0,0.00144]
[1773155728838,0.07028197,71143.0,71129.0,0.00144]
[1773155728839,0.001,71143.0,71129.0,0.00144]
[1773155729132,0.03,71142.0,71129.0,0.00144]
[1773155729342,0.03,71142.0,71130.0,0.00107369]
[1773155729554,0.03,71142.0,71125.0,0.00273]
[1773155729555,0.10028197,71142.0,71125.0,0.00273]
[1773155729779,0.14505551,71142.0,71126.0,0.00144]
[1773155730112,0.07010632,71142.0,71126.0,0.00144]
[1773155730962,0.03,71146.0,71126.0,0.00144]
[1773155731133,0.03,71146.0,71127.0,0.07449794]
[1773155731915,0.07026399,71161.0,71127.0,0.07449794]
[1773155731916,0.03,71158.0,71132.0,0.07386728]
[1773155732207,0.11363154,71188.0,71148.0,0.15762607]
[1773155732208,0.00912436,71180.0,71148.0,0.15762607]
[1773155732413,0.07024464,71180.0,71149.0,0.07593773]
[1773155732624,0.07024464,71180.0,71137.0,0.33458218]
[1773155732625,0.07024464,71180.0,71134.0,0.33458218]
[1773155732626,0.15776484,71173.0,71134.0,0.33458218]
[1773155732909,0.15776484,71173.0,71120.0,0.00048]
[1773155732910,0.15776484,71173.0,71128.0,0.0702958]
[1773155732911,0.07494919,71167.0,71128.0,0.0702958]
[1773155733140,0.15762607,71170.0,71127.0,0.14416308]
[1773155733141,0.03,71162.0,71133.0,0.00144]
[1773155733271,0.01119481,71166.0,71125.0,0.07052679]
[1773155733272,0.03,71156.0,71125.0,0.00023]
[1773155733638,0.03,71146.0,71125.0,0.00023]
[1773155733780,0.03,71144.0,71125.0,0.00023]
[1773155734170,0.03,71142.0,71120.0,0.00048]
[1773155734498,0.070279,71145.0,71120.0,0.00048]
[1773155734499,0.10494919,71140.0,71120.0,0.00048]
[1773155734818,0.070279,71145.0,71117.0,0.00022]
[1773155734819,0.03,71138.0,71117.0,0.00022]
[1773155735117,0.03,71136.0,71118.0,0.00144]
[1773155735267,0.10494919,71136.0,71117.0,0.00022]
[1773155735470,0.10494919,71136.0,71110.0,0.00722]
[1773155735471,0.00144,71141.0,71116.0,0.00144]
[1773155735472,0.03,71132.0,71116.0,0.00144]
[1773155735873,0.03,71130.0,71116.0,0.07174748]
[1773155736705,0.03,71130.0,71117.0,0.00022]
[1773155736916,0.03,71129.0,71117.0,0.00022]
[1773155737607,0.03,71129.0,71110.0,0.00722]
[1773155737979,0.03,71129.0,71111.0,0.00144]
[1773155737980,0.03,71125.0,71111.0,0.00144]
[1773155738924,0.03,71126.0,71111.0,0.00144]
[1773155739095,0.03,71126.0,71110.0,0.07753268]
[1773155739096,0.03,71126.0,71110.0,0.23515875]
[1773155739302,0.03,71126.0,71111.0,0.00144]
[1773155739857,0.03,71126.0,71090.0,0.13516]
[1773155740055,0.03,71126.0,71107.0,0.00144]
[1773155740056,0.03,71124.0,71107.0,0.00144]
[1773155740374,0.03,71124.0,71104.0,0.14980592]
[1773155740375,0.03,71124.0,71108.0,0.00144]
[1773155740586,0.03,71124.0,71104.0,0.07593889]
[1773155740587,0.03,71124.0,71109.0,0.00144]
[1773155741308,0.03986771,71124.0,71109.0,0.00144]
[1773155741591,0.03,71122.0,71110.0,0.00144]
[1773155741727,0.03,71122.0,71104.0,0.00562]
[1773155741728,0.03,71122.0,71104.0,0.07593932]
[1773155741932,0.03,71120.0,71105.0,0.00144]
[1773155742131,0.03,71120.0,71105.0,0.07175773]
[1773155742464,0.03,71120.0,71104.0,0.00562]
[1773155742688,0.03,71120.0,71105.0,0.00144]
[1773155743057,0.03,71121.0,71105.0,0.00144]
[1773155743664,0.03,71119.0,71106.0,0.00144]
[1773155743885,0.00975481,71120.0,71106.0,0.00144]
[1773155744209,0.08016769,71124.0,71107.0,0.07031656]
[1773155744500,0.08016769,71124.0,71102.0,0.00022]
[1773155744649,0.03,71122.0,71102.0,0.00022]
[1773155744850,0.03,71122.0,71092.0,0.07033089]
[1773155744851,0.08016769,71124.0,71091.0,1e-08]
[1773155744852,0.03,71109.0,71091.0,1e-08]
[1773155745050,0.03,71096.0,71076.0,0.54608544]
[1773155745301,0.15758904,71097.0,71076.0,0.07596665]
[1773155745686,0.15758904,71097.0,71069.0,0.070834]
[1773155745687,0.15758904,71097.0,71064.0,0.09928154]
[1773155745688,0.07494919,71096.0,71064.0,0.09928154]
[1773155745896,0.03,71079.0,71051.0,0.74247239]
[1773155746212,0.03,71079.0,71057.0,0.00144]
[1773155746213,0.00011278,71079.0,71057.0,0.00144]
[1773155746693,0.00011278,71079.0,71058.0,0.07386728]
[1773155746874,0.07032819,71096.0,71060.0,0.15762607]
[1773155747080,0.03,71095.0,71061.0,0.07354074]
[1773155747287,0.07032819,71096.0,71060.0,0.0003754]
[1773155747288,0.03,71089.0,71060.0,0.0003754]
[1773155747662,0.03,71089.0,71061.0,0.00144]
[1773155747968,0.03,71083.0,71061.0,0.00144]
[1773155748174,0.03,71083.0,71062.0,0.07036109]
[1773155748175,0.03144,71083.0,71062.0,0.07036109]
[1773155748341,0.03,71083.0,71062.0,0.07036109]
[1773155749063,0.07033931,71085.0,71060.0,0.0013754]
[1773155749064,0.03,71082.0,71060.0,0.0013754]
[1773155749282,0.03,71082.0,71061.0,0.00144]
[1773155749479,0.03,71082.0,71051.0,0.07037139]
[1773155749651,0.03037691,71082.0,71052.0,0.00144]
[1773155750054,0.03,71080.0,71053.0,0.07037]
[1773155750278,0.03,71080.0,71054.0,0.07873081]
[1773155750617,0.03,71080.0,71055.0,0.00144]
[1773155751107,0.03,71080.0,71056.0,0.00144]
[1773155751311,0.03144,71080.0,71053.0,0.07037]
[1773155751456,0.03144,71080.0,71057.0,0.00144]
[1773155751457,0.03,71080.0,71057.0,0.00144]
[1773155752190,0.03,71078.0,71058.0,0.07036505]
[1773155754010,0.03,71078.0,71059.0,0.00144]
[1773155754246,0.03,71076.0,71060.0,0.00144]
[1773155754445,0.03,71076.0,71054.0,0.00022]
[1773155754890,0.03,71074.0,71054.0,0.00022]
[1773155755036,0.03,71074.0,71054.0,0.07058887]
[1773155755895,0.03,71073.0,71054.0,0.07058887]
[1773155756047,0.03,71071.0,71054.0,0.07058887]
[1773155756879,0.03,71071.0,71055.0,0.07873081]
[1773155757054,0.04048585,71071.0,71055.0,0.08017081]
[1773155757470,0.03,71075.0,71055.0,0.08017081]
[1773155757669,0.04048585,71075.0,71055.0,0.08017081]
[1773155757873,0.04048585,71075.0,71054.0,0.0705885]
[1773155757874,0.11083444,71075.0,71054.0,0.0705885]
[1773155758090,0.11083444,71075.0,71056.0,0.07036703]
[1773155758279,0.11083444,71075.0,71055.0,0.07180726]
[1773155758484,0.11083444,71075.0,71055.0,0.07036726]
[1773155758685,0.11083444,71075.0,71054.0,1e-08]
[1773155758884,0.11083444,71075.0,71050.0,0.00023]
[1773155758885,0.03,71071.0,71050.0,0.00023]
[1773155759259,0.08083444,71075.0,71055.0,0.001]
[1773155759260,0.03,71069.0,71055.0,0.001]
[1773155759427,0.07034859,71075.0,71055.0,0.001]
[1773155759428,0.03,71067.0,71055.0,0.00122]
[1773155759623,0.03,71065.0,71055.0,0.00022]
[1773155759836,0.03,71063.0,71055.0,0.00022]
[1773155760044,0.01048585,71064.0,71055.0,0.00022]
[1773155760045,0.001,71071.0,71056.0,0.00144]
[1773155760273,0.001,71071.0,71057.0,0.07036604]
[1773155760423,0.07071855,71082.0,71058.0,0.07873081]
[1773155760623,0.07071855,71082.0,71059.0,0.00144]
[1773155760624,0.01048585,71081.0,71059.0,0.00144]
[1773155760827,0.01048585,71081.0,71055.0,0.07058604]
[1773155761073,0.01048585,71081.0,71055.0,0.00022]
[1773155761074,0.03,71078.0,71055.0,0.00022]
[1773155761208,0.03,71078.0,71048.0,0.00562]
[1773155761209,0.15988303,71080.0,71051.0,0.00144]
[1773155761210,0.04645882,71074.0,71051.0,0.00144]
[1773155761411,0.01048585,71073.0,71051.0,0.00144]
[1773155761996,0.03,71066.0,71051.0,0.00144]
[1773155762296,0.03,71066.0,71047.0,0.07059553]
[1773155762297,0.03,71066.0,71047.0,1e-08]
[1773155762298,0.03,71062.0,71047.0,1e-08]
[1773155762495,0.03,71062.0,71040.0,1e-08]
[1773155762496,0.03,71060.0,71040.0,1e-08]
[1773155762712,0.14174009,71058.0,71041.0,0.00144]
[1773155763043,0.14174009,71058.0,71042.0,0.00144]
[1773155763242,0.14174009,71058.0,71043.0,0.00144]
[1773155763243,0.03,71058.0,71043.0,0.00144]
[1773155763744,0.03,71056.0,71043.0,0.00144]
[1773155764100,0.03,71054.0,71043.0,0.00144]
[1773155764331,0.03,71054.0,71040.0,1e-08]
[1773155764535,0.03,71054.0,71041.0,0.00144]
[1773155764951,0.01048585,71055.0,71043.0,0.15768965]
[1773155765104,0.01048585,71055.0,71039.0,0.07060288]
[1773155765105,0.01048585,71055.0,71039.0,0.00022]